bitfinex/quotes_SOLUSD_20250305
["timestamp","ask_amount","ask_price","bid_price","bid_amount"]
[1741184156555,20.0,144.29,144.23,18.64964886]
[1741184156725,20.0,144.29,144.22,6.06]
[1741184156726,1.3861,144.28,144.22,6.06]
[1741184157238,1.3861,144.28,144.23,0.28432314]
[1741184157553,1.3861,144.28,144.22,6.06]
[1741184157742,1.3861,144.28,144.23,0.28432314]
[1741184158149,1.386,144.3,144.23,0.28432314]
[1741184158654,4.851,144.3,144.23,0.28432314]
[1741184159331,4.851,144.3,144.21,0.28432314]
[1741184159761,4.851,144.3,144.2,0.14216157]
[1741184160058,82.9,144.29,144.2,18.933972]
[1741184160353,90.6174,144.28,144.22,1.0]
[1741184160947,20.0,144.25,144.22,1.0]
[1741184161149,1.3865,144.24,144.22,1.0]
[1741184161630,21.3865,144.24,144.22,1.0]
[1741184162429,104.2865,144.24,144.22,1.0]
[1741184162629,82.9,144.23,144.22,1.0]
[1741184162846,82.9,144.23,144.16,0.28432314]
[1741184163059,82.9,144.22,144.16,0.28432314]
[1741184163259,1.3868,144.21,144.16,0.28432314]
[1741184163551,1.5305,144.2,144.14,18.64964886]
[1741184163931,1.5305,144.2,144.15,0.28432314]
[1741184165443,9.1689,144.2,144.12,58.426]
[1741184165648,12.6363,144.2,144.12,52.366]
[1741184165830,82.9,144.19,144.12,0.033]
[1741184167550,1.3871,144.18,144.12,0.033]
[1741184169247,82.9,144.17,144.12,0.033]
[1741184169546,82.9,144.16,144.12,0.033]
[1741184170462,82.9,144.16,144.13,0.28432314]
[1741184171570,82.9,144.16,144.13,0.14216157]
[1741184172061,7.7819,144.2,144.14,32.52813182]
[1741184172246,7.7819,144.2,144.15,32.52813182]
[1741184172451,1.5305,144.2,144.17,0.28432314]
[1741184172750,1.5305,144.2,144.17,32.67029339]
[1741184173243,7.6675,144.24,144.19,0.28432314]
[1741184173440,90.5675,144.24,144.19,32.67029339]
[1741184173742,90.5675,144.24,144.19,7.21952314]
[1741184174355,90.5675,144.24,144.19,0.28432314]
[1741184174559,91.954,144.24,144.17,6.06]
[1741184174866,91.954,144.24,144.18,0.28432314]
[1741184175345,1.3867,144.22,144.17,6.06]
[1741184175549,84.2867,144.22,144.17,6.06]
[1741184175736,87.7536,144.22,144.12,80.52734615]
[1741184175941,82.9,144.21,144.12,25.905472]
[1741184176161,82.9,144.21,144.13,32.38597025]
[1741184176774,82.9,144.21,144.15,0.28432314]
[1741184176931,82.9,144.2,144.16,0.033]
[1741184177135,84.287,144.2,144.16,0.033]
[1741184177770,87.7544,144.2,144.16,0.033]
[1741184177952,84.287,144.2,144.16,0.033]
[1741184178278,82.9,144.2,144.16,0.31732314]
[1741184178436,1.3868,144.22,144.16,0.31732314]
[1741184179287,4.8537,144.22,144.16,0.31732314]
[1741184180265,1.3868,144.22,144.16,0.31732314]
[1741184180448,82.9,144.23,144.16,25.903672]
[1741184180653,84.2867,144.23,144.16,18.966972]
[1741184181062,87.7533,144.23,144.16,18.966972]
[1741184181254,82.9,144.22,144.16,0.31732314]
[1741184182547,82.9,144.22,144.16,0.033]
[1741184182746,4.8533,144.23,144.16,0.033]
[1741184182747,82.9,144.21,144.16,0.033]
[1741184183456,4.8543,144.2,144.16,0.033]
[1741184186775,1.3869,144.2,144.16,0.033]
[1741184186978,82.9,144.19,144.16,0.033]
[1741184187159,84.287,144.19,144.16,0.033]
[1741184188048,82.9,144.19,144.16,0.033]
[1741184188369,84.287,144.19,144.16,0.033]
[1741184189877,84.442,144.18,144.16,0.033]
[1741184190076,88.9045,144.17,144.12,0.033]
[1741184190264,82.9,144.16,144.12,0.033]
[1741184190464,84.442,144.18,144.12,6.9715]
[1741184190654,84.442,144.18,144.13,18.933972]
[1741184190855,84.442,144.18,144.13,51.31994225]
[1741184191058,1.542,144.18,144.13,51.31994225]
[1741184191379,1.542,144.18,144.13,0.28432314]
[1741184191567,1.542,144.18,144.13,25.871872]
[1741184191978,6.3645,144.2,144.14,18.64964886]
[1741184192153,7.7515,144.2,144.14,18.64964886]
[1741184192355,7.7515,144.2,144.13,0.28432314]
[1741184192559,7.7515,144.2,144.13,18.933972]
[1741184193162,7.7515,144.2,144.13,18.64964886]
[1741184193479,11.2189,144.2,144.13,18.64964886]
[1741184194584,82.9,144.19,144.12,0.033]
[1741184194876,11.2189,144.2,144.12,0.033]
[1741184194877,1.6389,144.14,144.12,0.033]
[1741184195085,82.9,144.13,144.12,0.033]
[1741184195462,84.2876,144.13,144.12,0.033]
[1741184196383,82.9,144.13,144.12,0.033]
[1741184196561,1.6389,144.14,144.12,0.033]
[1741184196762,90.7148,144.13,144.12,0.033]
[1741184197182,84.2876,144.13,144.12,0.033]
[1741184197790,1.3876,144.13,144.12,0.033]
[1741184198081,11.7947,144.13,144.06,0.033]
[1741184198287,82.9,144.12,144.06,0.033]
[1741184199485,1.3878,144.11,144.06,0.033]
[1741184201087,82.9,144.1,144.06,0.033]
[1741184201285,82.9,144.09,144.06,0.033]
[1741184202789,84.288,144.09,144.06,0.033]
[1741184204494,12.97686157,144.09,144.06,0.033]
[1741184206287,82.9,144.08,144.06,0.033]
[1741184206600,1.3882,144.07,144.06,0.033]
[1741184207498,1.3882,144.07,144.04,0.033]
[1741184207499,4.8587,144.07,144.04,0.033]
[1741184207682,20.0,144.05,144.04,0.033]
[1741184209292,20.0,144.05,144.03,0.033]
[1741184209792,20.14216157,144.05,144.03,0.033]
[1741184209994,1.5062,144.04,144.03,0.033]
[1741184210491,21.64836157,144.04,144.03,0.033]
[1741184210701,21.64836157,144.04,144.01,0.033]
[1741184210702,20.0,144.03,144.01,0.033]
[1741184210990,102.9,144.03,144.01,0.033]
[1741184211191,6.2977,144.02,144.01,0.033]
[1741184211492,7.6863,144.02,144.01,0.033]
[1741184211905,11.30016157,144.02,143.99,0.033]
[1741184212197,18.933972,144.01,143.99,0.0001]
[1741184212488,11.158,144.02,143.99,0.0001]
[1741184212692,11.158,144.02,144.0,0.033]
[1741184214996,7.6863,144.02,144.0,0.033]
[1741184216502,7.6863,144.02,143.99,0.0001]
[1741184216503,21.3888,144.0,143.99,0.0001]
[1741184217175,1.3888,144.0,143.99,0.0001]
[1741184217881,6.85286906,144.0,143.99,0.0001]
[1741184218071,25.78684106,144.0,143.99,0.0001]
[1741184218474,21.389,143.98,143.97,0.033]
[1741184219270,20.0,143.99,143.97,0.033]
[1741184219509,1.5691,144.0,143.97,0.033]
[1741184219510,2.958,144.0,143.97,0.033]
[1741184220194,20.0,143.99,143.97,0.033]
[1741184220402,20.0,143.98,143.97,0.033]
[1741184220581,20.0,143.97,143.88,6.9501]
[1741184221125,20.0,143.95,143.87,6.3105]
[1741184221279,1.5461,143.93,143.83,38.85467025]
[1741184221577,1.5461,143.93,143.86,18.64964886]
[1741184222180,1.5461,143.93,143.87,0.28432314]
[1741184222581,1.6179,143.97,143.88,51.03561911]
[1741184222797,1.6179,143.97,143.89,32.38597025]
[1741184223007,3.007,143.97,143.9,18.64964886]
[1741184223303,82.9,143.96,143.9,18.64964886]
[1741184223525,82.9,143.96,143.89,32.38597025]
[1741184223526,82.9,143.95,143.87,7.23482314]
[1741184223811,82.9,143.95,143.9,18.933972]
[1741184224020,84.5179,143.97,143.92,0.28432314]
[1741184224186,82.9,143.97,143.94,18.64964886]
[1741184224581,82.9,143.97,143.94,51.03561911]
[1741184224776,82.9,143.97,143.94,18.64964886]
[1741184224974,82.9,143.97,143.93,32.38597025]
[1741184225201,82.9,143.97,143.92,39.33387025]
[1741184225402,82.9,143.97,143.94,18.64964886]
[1741184225607,82.9,143.97,143.95,18.64964886]
[1741184225903,82.9,144.0,143.95,18.64964886]
[1741184226120,82.9,143.99,143.95,18.64964886]
[1741184226417,82.9,144.01,143.96,18.933972]
[1741184226633,82.9,144.01,143.96,25.880072]
[1741184226795,82.9,144.01,143.98,0.28432314]
[1741184226991,82.9,144.04,144.0,18.64964886]
[1741184227488,82.9,144.04,143.99,18.933972]
[1741184227702,84.2885,144.04,143.99,18.64964886]
[1741184227876,82.9,144.04,143.98,32.67029339]
[1741184228200,82.9,144.04,144.01,0.28432314]
[1741184228379,21.3884,144.05,143.98,32.38597025]
[1741184228581,104.2884,144.05,143.98,32.38597025]
[1741184228782,104.2884,144.05,143.98,0.28432314]
[1741184229384,104.2884,144.05,143.94,6.0594]
[1741184229385,82.9,144.04,143.94,6.0594]
[1741184229621,82.9,144.03,143.95,0.14216157]
[1741184229824,1.5298,144.01,143.92,46.39527025]
[1741184229979,1.5298,144.01,143.92,6.06]
[1741184229980,82.9,144.0,143.92,6.06]
[1741184230399,82.9,144.0,143.93,18.64964886]
[1741184230605,82.9,144.0,143.94,0.28432314]
[1741184230818,1.3889,143.99,143.93,18.64964886]
[1741184232029,82.9,144.0,143.94,0.28432314]
[1741184232636,84.2889,144.0,143.94,0.28432314]
[1741184234314,84.2889,144.0,143.95,18.64964886]
[1741184234515,82.9,143.99,143.95,18.64964886]
[1741184235647,82.9,143.99,143.94,0.28432314]
[1741184235817,1.389,143.98,143.93,18.64964886]
[1741184236947,1.389,143.98,143.93,25.59744886]
[1741184237250,84.2889,143.99,143.94,0.28432314]
[1741184238054,84.2889,143.99,143.93,18.64964886]
[1741184238348,87.7613,143.99,143.93,18.64964886]
[1741184238532,87.7613,143.99,143.92,6.06]
[1741184238731,89.2712,143.98,143.89,32.38597025]
[1741184239041,82.9,143.97,143.89,18.933972]
[1741184239433,82.9,143.96,143.88,0.033]
[1741184239634,84.4024,143.95,143.88,0.033]
[1741184239852,4.8634,143.93,143.88,0.033]
[1741184241237,1.3897,143.91,143.88,0.033]
[1741184241446,82.9,143.9,143.88,0.033]
[1741184241757,84.4343,143.89,143.88,0.033]
[1741184241931,1.5343,143.89,143.88,0.033]
[1741184242132,21.5343,143.89,143.88,0.033]
[1741184243234,20.0,143.88,143.78,32.38597025]
[1741184243443,24.8651,143.88,143.77,39.34137025]
[1741184243656,24.8651,143.88,143.78,18.933972]
[1741184243959,24.8651,143.88,143.77,18.64964886]
[1741184244251,24.8651,143.88,143.78,0.28432314]
[1741184244450,24.8651,143.88,143.77,18.64964886]
[1741184244660,20.0,143.86,143.77,18.64964886]
[1741184245035,1.3903,143.85,143.77,18.64964886]
[1741184245239,1.3903,143.85,143.77,57.99091911]
[1741184245546,1.3903,143.85,143.79,18.64964886]
[1741184246145,1.3903,143.85,143.78,18.933972]
[1741184246345,1.3901,143.87,143.78,25.888872]
[1741184248250,5.15136157,143.89,143.78,25.888872]
[1741184248450,82.9,143.84,143.78,25.888872]
[1741184248651,82.9,143.83,143.78,25.888872]
[1741184248836,82.9,143.83,143.78,0.28432314]
[1741184249041,82.9,143.83,143.78,7.23932314]
[1741184249242,82.9,143.83,143.78,0.28432314]
[1741184249438,82.9,143.83,143.76,32.38597025]
[1741184249644,1.5639,143.82,143.75,32.38597025]
[1741184249845,82.9,143.81,143.74,6.9898]
[1741184250042,82.9,143.81,143.75,18.64964886]
[1741184250355,1.3908,143.8,143.75,18.64964886]
[1741184250948,82.9,143.79,143.75,18.64964886]
[1741184251151,82.9,143.78,143.74,0.033]
[1741184251352,82.9,143.77,143.74,0.033]
[1741184252250,82.9,143.76,143.74,0.033]
[1741184252457,82.9,143.75,143.74,0.033]
[1741184252657,1.3911,143.77,143.74,0.033]
[1741184253248,1.5881,143.75,143.74,0.033]
[1741184253444,1.3911,143.77,143.74,0.033]
[1741184253649,2.9785,143.84,143.74,0.033]
[1741184253970,82.9,143.83,143.74,0.033]
[1741184254158,82.9,143.83,143.75,0.28432314]
[1741184254358,82.9,143.83,143.74,18.68264886]
[1741184254359,1.3906,143.82,143.74,18.68264886]
[1741184254561,1.3906,143.82,143.74,0.17516157]
[1741184255176,1.3906,143.82,143.74,0.033]
[1741184255364,4.8671,143.82,143.74,0.033]
[1741184255753,1.5215,143.8,143.74,0.033]
[1741184255954,82.9,143.79,143.74,0.033]
[1741184256572,1.391,143.78,143.74,0.033]
[1741184256876,20.0,143.76,143.74,0.033]
[1741184258076,82.9,143.79,143.74,0.033]
[1741184258453,1.5215,143.8,143.74,0.033]
[1741184258675,82.9,143.79,143.74,18.966972]
[1741184258851,82.9,143.79,143.74,51.35294225]
[1741184259056,82.9,143.79,143.76,0.28432314]
[1741184260150,82.9,143.83,143.76,51.03561911]
[1741184260375,82.9,143.82,143.75,32.52813182]
[1741184260577,82.9,143.82,143.78,0.14216157]
[1741184260888,82.9,143.82,143.79,18.64964886]
[1741184261055,1.5379,143.88,143.82,0.28432314]
[1741184261385,82.9,143.87,143.82,0.28432314]
[1741184261978,82.9,143.87,143.79,0.14216157]
[1741184262172,82.9,143.86,143.79,0.28432314]
[1741184262882,1.3903,143.85,143.79,7.23882314]
[1741184263093,1.3903,143.85,143.79,0.28432314]
[1741184263375,1.3903,143.85,143.78,18.64964886]
[1741184263581,82.9,143.84,143.78,18.64964886]
[1741184263878,82.9,143.83,143.78,18.64964886]
[1741184264577,82.9,143.83,143.78,25.60464886]
[1741184265462,84.2905,143.83,143.78,18.64964886]
[1741184266065,84.2905,143.83,143.77,6.06]
[1741184266267,84.2905,143.83,143.74,32.41897025]
[1741184266465,82.9,143.82,143.74,32.41897025]
[1741184266659,82.9,143.82,143.76,0.28432314]
[1741184266859,84.2907,143.81,143.75,18.64964886]
[1741184267185,82.9,143.8,143.74,0.033]
[1741184267481,82.9,143.79,143.74,18.68264886]
[1741184267989,82.9,143.78,143.74,0.033]
[1741184268971,1.3911,143.77,143.74,0.033]
[1741184269172,82.9,143.76,143.74,0.033]
[1741184269394,82.9,143.75,143.74,0.033]
[1741184270173,4.8688,143.77,143.74,0.033]
[1741184271195,3.42876071,143.79,143.74,0.033]
[1741184271499,11.8219,143.8,143.74,0.033]
[1741184271715,20.0,143.76,143.74,0.033]
[1741184271896,82.9,143.75,143.74,0.033]
[1741184273286,84.2913,143.75,143.74,0.033]
[1741184273802,82.9,143.75,143.74,0.033]
[1741184274208,84.2913,143.75,143.74,0.033]
[1741184275278,4.8678,143.8,143.74,0.033]
[1741184275481,82.9,143.79,143.74,0.033]
[1741184276589,82.9,143.78,143.74,0.033]
[1741184277099,82.9,143.78,143.74,0.31732314]
[1741184277299,82.9,143.87,143.81,18.933972]
[1741184278107,82.9,143.87,143.8,0.28432314]
[1741184278504,84.2902,143.87,143.8,0.28432314]
[1741184278802,82.9,143.86,143.78,18.64964886]
[1741184279006,82.9,143.85,143.77,0.14216157]
[1741184279243,82.9,143.85,143.78,18.933972]
[1741184279499,82.9,143.85,143.8,0.28432314]
[1741184280202,0.03,143.88,143.82,0.28432314]
[1741184280389,0.03,143.88,143.79,32.38597025]
[1741184280601,82.9,143.87,143.8,0.28432314]
[1741184280906,82.9,143.87,143.8,18.933972]
[1741184281410,82.9,143.87,143.8,7.23802314]
[1741184281609,0.03,143.88,143.84,0.28432314]
[1741184282511,0.03,143.88,143.86,0.28432314]
[1741184283426,0.03,143.88,143.87,7.23502314]
[1741184283598,0.03,143.88,143.87,25.884672]
[1741184283798,0.03,143.88,143.87,58.27064225]
[1741184284541,82.9,143.95,143.87,58.27064225]
[1741184284542,82.9,143.95,143.88,0.28432314]
[1741184284741,82.9,143.95,143.91,0.28432314]
[1741184284901,82.9,143.95,143.91,18.933972]
[1741184285300,7.9211,144.0,143.89,32.38597025]
[1741184285301,84.2889,143.99,143.89,32.38597025]
[1741184285640,82.9,143.98,143.9,0.28432314]
[1741184286237,82.9,143.98,143.88,18.64964886]
[1741184286409,82.9,143.98,143.89,0.28432314]
[1741184286801,82.9,143.98,143.91,0.28432314]
[1741184286997,82.9,143.98,143.92,18.64964886]
[1741184287200,6.5322,144.0,143.87,89.2506]
[1741184287201,1.3892,143.96,143.89,0.28432314]
[1741184287436,82.9,143.95,143.88,18.933972]
[1741184287731,82.9,143.95,143.88,58.27004225]
[1741184287907,82.9,143.95,143.88,51.31994225]
[1741184288105,82.9,143.95,143.88,18.933972]
[1741184288609,82.9,143.94,143.88,18.933972]
[1741184289024,82.9,143.94,143.88,58.27014225]
[1741184289213,82.9,143.94,143.9,0.28432314]
[1741184289803,82.9,143.94,143.9,51.31994225]
[1741184290012,82.9,143.94,143.91,18.64964886]
[1741184290733,84.2894,143.94,143.88,0.28432314]
[1741184291133,82.9,143.93,143.88,0.28432314]
[1741184291326,1.3897,143.91,143.86,0.033]
[1741184291628,82.9,143.9,143.86,0.033]
[1741184291828,82.9,143.89,143.86,0.033]
[1741184292804,82.9,143.88,143.86,0.033]
[1741184293028,82.9,143.87,143.86,0.0001]
[1741184293326,4.8647,143.89,143.86,0.0001]
[1741184293527,4.8647,143.89,143.77,16.88218977]
[1741184293719,20.0,143.87,143.78,18.933972]
[1741184294121,20.0,143.86,143.78,18.933972]
[1741184294314,20.0,143.86,143.77,6.04]
[1741184295434,4.8661,143.85,143.77,6.04]
[1741184296912,20.0,143.88,143.78,51.31994225]
[1741184297117,1.3902,143.87,143.81,18.933972]
[1741184297325,1.39,143.88,143.81,18.933972]
[1741184297524,1.39,143.88,143.79,0.28432314]
[1741184297525,82.9,143.86,143.79,0.28432314]
[1741184298237,82.9,143.86,143.78,18.64964886]
[1741184298433,82.9,143.85,143.78,18.64964886]
[1741184298640,82.9,143.85,143.77,6.35732314]
[1741184299033,82.9,143.85,143.77,13.31272314]
[1741184299552,1.3904,143.84,143.77,13.31272314]
[1741184299846,82.9,143.85,143.78,51.31994225]
[1741184300147,82.9,143.85,143.8,51.31994225]
[1741184300344,82.9,143.87,143.8,51.31994225]
[1741184300551,82.9,143.87,143.83,0.28432314]
[1741184301034,84.2901,143.87,143.81,32.38597025]
[1741184301221,84.2901,143.87,143.79,0.28432314]
[1741184301418,82.9,143.86,143.79,0.28432314]
[1741184301641,1.3903,143.85,143.77,6.073]
[1741184301821,1.5848,143.84,143.78,18.933972]
[1741184302023,82.9,143.83,143.77,6.073]
[1741184302223,1.5848,143.84,143.77,6.073]
[1741184302224,82.9,143.82,143.77,6.073]
[1741184302663,82.9,143.82,143.78,18.64964886]
[1741184303114,82.9,143.82,143.77,6.073]
[1741184303639,1.3907,143.81,143.77,0.033]
[1741184303836,82.9,143.8,143.77,0.033]
[1741184305760,84.2908,143.8,143.77,0.033]
[1741184307147,82.9,143.79,143.77,0.033]
[1741184308249,84.2909,143.79,143.77,0.033]
[1741184310756,82.9,143.78,143.77,0.033]
[1741184310958,1.3909,143.79,143.77,0.033]
[1741184311841,1.3908,143.8,143.77,0.033]
[1741184312159,4.8678,143.8,143.77,0.033]
[1741184313354,0.14216157,143.83,143.77,0.033]
[1741184313556,82.9,143.82,143.77,0.033]
[1741184313732,0.14216157,143.81,143.77,0.033]
[1741184314654,82.9,143.82,143.77,0.033]
[1741184315261,82.9,143.81,143.77,0.033]
[1741184317159,82.9,143.81,143.77,18.966972]
[1741184317357,82.9,143.81,143.78,32.38597025]
[1741184317533,82.9,143.81,143.77,32.41897025]
[1741184317740,82.9,143.81,143.77,0.31732314]
[1741184317942,84.2907,143.81,143.77,0.033]
[1741184320340,82.9,143.81,143.77,0.033]
[1741184320742,82.9,143.81,143.79,0.28432314]
[1741184320957,82.9,143.81,143.79,18.933972]
[1741184321858,82.9,143.81,143.79,25.888072]
[1741184322459,82.9,143.81,143.79,18.933972]
[1741184322857,82.9,143.81,143.79,0.28432314]
[1741184323046,84.2907,143.81,143.77,0.033]
[1741184324451,82.9,143.8,143.77,0.033]
[1741184324658,82.9,143.79,143.77,0.033]
[1741184326247,1.391,143.78,143.77,0.033]
[1741184326459,21.391,143.78,143.77,0.033]
[1741184326868,21.391,143.78,143.77,0.0001]
[1741184329958,20.0,143.78,143.77,0.0001]
[1741184330787,1.3904,143.84,143.77,0.0001]
[1741184330945,0.03,143.87,143.83,32.67029339]
[1741184331143,0.03,143.87,143.85,0.14216157]
[1741184331338,0.03,143.87,143.86,51.17778068]
[1741184331580,0.03,143.87,143.86,51.31994225]
[1741184332683,0.03,143.87,143.86,71.79914053]
[1741184333483,0.03,143.87,143.86,18.64964886]
[1741184334543,0.03,143.87,143.86,18.933972]
[1741184335647,0.03,143.87,143.86,18.64964886]
[1741184336661,0.03,143.87,143.84,6.04]
[1741184337871,82.93,143.87,143.8,59.22016853]
[1741184338167,82.93,143.87,143.81,18.933972]
[1741184338369,82.93,143.87,143.82,18.64964886]
[1741184339050,82.93,143.87,143.82,52.86516853]
[1741184339951,82.93,143.87,143.83,53.14949167]
[1741184340145,0.03,143.87,143.84,71.51481739]
[1741184340351,0.03,143.87,143.86,71.51481739]
[1741184340546,0.03,143.87,143.86,71.79914053]
[1741184340875,0.03,143.87,143.86,53.14949167]
[1741184341460,0.03,143.87,143.86,71.79914053]
[1741184346678,0.03,143.87,143.86,154.09914053]
[1741184346883,82.93,144.0,143.91,0.28432314]
[1741184347086,84.289,143.99,143.92,52.86516853]
[1741184347289,84.289,143.99,143.93,0.14216157]
[1741184348287,87.7614,143.99,143.93,0.14216157]
[1741184348686,84.289,143.99,143.95,0.28432314]
[1741184349271,87.7614,143.99,143.94,18.64964886]
[1741184349473,87.7614,143.99,143.94,0.28432314]
[1741184349678,87.7614,143.99,143.94,0.14216157]
[1741184350286,87.7614,143.99,143.94,18.79181043]
[1741184350786,1.389,143.99,143.95,0.14216157]
[1741184350994,1.389,143.99,143.96,18.79181043]
[1741184351174,0.03,144.0,143.96,18.79181043]
[1741184351175,0.03,144.0,143.98,0.14216157]
[1741184351378,0.03,144.0,143.99,18.933972]
[1741184351969,0.03,144.0,143.99,0.28432314]
[1741184353093,0.03,144.0,143.98,0.28432314]
[1741184355692,0.03,144.0,143.99,18.64964886]
[1741184355988,0.03,144.0,143.96,114.78940311]
[1741184356195,0.03,144.0,143.97,0.28432314]
[1741184356374,0.03,144.0,143.97,51.42337511]
[1741184356574,0.03,144.0,143.99,51.42337511]
[1741184356989,0.03,144.0,143.99,0.28432314]
[1741184357372,0.03,144.0,143.99,18.933972]
[1741184357872,0.03,144.0,143.99,51.42337511]
[1741184358074,0.03,144.0,143.99,18.933972]
[1741184358591,0.03,144.0,143.99,58.36827511]
[1741184358995,0.03,144.03,144.02,20.28432314]
[1741184359192,0.03,144.06,144.05,51.42337511]
[1741184359395,0.03,144.06,144.05,133.72337511]
[1741184360284,0.03,144.06,144.05,101.233972]
[1741184360997,0.03,144.06,144.05,18.64964886]
[1741184361906,0.03,144.06,144.05,18.933972]
[1741184362105,0.03,144.06,144.05,58.36537511]
[1741184363111,0.03,144.06,144.05,18.933972]
[1741184365111,0.03,144.06,144.05,18.64964886]
[1741184365815,0.03,144.06,144.01,39.43310311]
[1741184366107,0.03,144.06,144.01,18.933972]
[1741184366292,0.03,144.06,144.01,58.36717511]
[1741184366898,0.03,144.06,144.01,25.877772]
[1741184368105,0.03,144.06,144.01,18.933972]
[1741184368514,0.03,144.06,144.01,18.79181043]
[1741184368695,0.03,144.06,144.02,0.28432314]
[1741184370391,82.93,144.06,144.01,0.28432314]
[1741184370592,1.3884,144.05,144.01,0.28432314]
[1741184370900,1.3884,144.05,144.01,18.933972]
[1741184371102,84.3183,144.06,144.01,18.933972]
[1741184371297,82.93,144.06,144.01,25.877572]
[1741184371819,82.93,144.06,144.01,58.36697511]
[1741184372115,82.93,144.06,144.01,25.877572]
[1741184372304,84.3183,144.06,144.01,18.933972]
[1741184372493,84.3183,144.06,144.01,18.64964886]
[1741184373424,87.789,144.06,143.97,168.91777901]
[1741184373600,82.9,144.05,143.98,18.64964886]
[1741184373803,82.9,144.04,143.96,6.02]
[1741184374101,82.9,144.04,143.98,0.28432314]
[1741184374516,1.3885,144.03,143.98,0.28432314]
[1741184374812,84.2885,144.03,143.98,0.28432314]
[1741184376525,84.2885,144.03,143.96,25.59594886]
[1741184376526,87.7599,144.03,143.96,18.64964886]
[1741184376706,90.9389,144.02,143.92,95.268]
[1741184376918,82.9,144.01,143.93,18.933972]
[1741184377118,82.9,144.0,143.93,18.933972]
[1741184377527,82.9,144.0,143.93,51.42337511]
[1741184377907,8.0389,144.02,143.95,51.42337511]
[1741184378130,8.0389,144.02,143.96,18.64964886]
[1741184378823,1.3887,144.01,143.96,18.64964886]
[1741184380443,9.4276,144.02,143.97,0.28432314]
[1741184380611,2.9217,144.02,143.97,0.28432314]
[1741184381433,1.533,144.02,143.99,0.28432314]
[1741184381643,2.9217,144.02,143.99,0.28432314]
[1741184381826,2.9217,144.02,143.97,18.64964886]
[1741184382010,6.3934,144.02,143.97,18.64964886]
[1741184383134,1.533,144.02,143.98,0.14216157]
[1741184383343,1.533,144.02,143.98,0.28432314]
[1741184383516,1.533,144.02,143.98,25.879272]
[1741184384409,2.9217,144.02,143.98,18.933972]
[1741184385035,22.9217,144.02,143.97,0.033]
[1741184385441,109.2934,144.02,143.97,0.033]
[1741184385923,105.8217,144.02,143.97,0.033]
[1741184386928,109.2934,144.02,143.97,0.033]
[1741184388226,6.6569,144.01,143.97,0.033]
[1741184389128,82.9,144.0,143.97,0.033]
[1741184390545,84.2889,144.0,143.97,0.033]
[1741184392839,87.7611,144.0,143.97,0.033]
[1741184393148,20.0,143.98,143.97,0.033]
[1741184394846,21.389,143.98,143.97,0.033]
[1741184395418,1.389,143.98,143.97,0.033]
[1741184398035,21.389,143.98,143.97,0.033]
[1741184398947,21.389,143.98,143.89,6.02]
[1741184398948,21.389,143.98,143.88,88.7267]
[1741184399136,1.5959,143.97,143.88,0.033]
[1741184399337,1.5959,143.97,143.88,0.31732314]
[1741184399733,1.5959,143.97,143.88,0.033]